[Event "Early-Titled-Tuesday-Blitz-July-09-2024"]
[Site "Chess.com"]
[Date "2024.07.09"]
[Round "4"]
[White "deribas12345"]
[Black "InitiatingASC"]
[Result "1/2-1/2"]
[WhiteElo "2629"]
[BlackElo "2432"]
[TimeControl "180+1"]
[EndTime "8:39:18 PDT"]
[Termination "Game drawn by repetition"]

1. d4 {[%clk 0:03:00.9]} 1... d5 {[%clk 0:02:59.5]} 2. c4 {[%clk 0:03:00.5]}
2... e6 {[%clk 0:02:59.3]} 3. Nc3 {[%clk 0:03:00.1]} 3... a6 {[%clk 0:02:59.8]}
4. Nf3 {[%clk 0:02:52.2]} 4... Nf6 {[%clk 0:02:58.6]} 5. cxd5 {[%clk 0:02:48.6]}
5... exd5 {[%clk 0:02:58]} 6. Bg5 {[%clk 0:02:48.2]} 6... Be7 {[%clk 0:02:57.6]}
7. e3 {[%clk 0:02:48]} 7... Nbd7 {[%clk 0:02:57.3]} 8. Bd3 {[%clk 0:02:48.2]}
8... Nf8 {[%clk 0:02:57.6]} 9. O-O {[%clk 0:02:48.3]} 9... Ne6 {[%clk 0:02:58]}
10. Bh4 {[%clk 0:02:39.7]} 10... O-O {[%clk 0:02:58.3]} 11. Qc2 {[%clk
0:02:38.7]} 11... g6 {[%clk 0:02:58.6]} 12. Rad1 {[%clk 0:02:37.9]} 12... Ng7
{[%clk 0:02:58.5]} 13. Ne5 {[%clk 0:02:29.4]} 13... Bf5 {[%clk 0:02:52.7]} 14.
f4 {[%clk 0:02:25.7]} 14... Bxd3 {[%clk 0:02:40.6]} 15. Qxd3 {[%clk 0:02:25.6]}
15... Nf5 {[%clk 0:02:41.4]} 16. Bf2 {[%clk 0:02:24.4]} 16... Nd6 {[%clk
0:02:41.4]} 17. Bh4 {[%clk 0:02:18.8]} 17... c6 {[%clk 0:02:35.4]} 18. Bxf6
{[%clk 0:02:12.8]} 18... Bxf6 {[%clk 0:02:34.9]} 19. Rf3 {[%clk 0:02:11.6]}
19... Bg7 {[%clk 0:02:28.5]} 20. Rdf1 {[%clk 0:02:10.4]} 20... Qe7 {[%clk
0:02:13.3]} 21. Rh3 {[%clk 0:02:04.4]} 21... Rae8 {[%clk 0:02:09.5]} 22. Kh1
{[%clk 0:01:54.5]} 22... Bxe5 {[%clk 0:01:51.6]} 23. fxe5 {[%clk 0:01:53.5]}
23... Nc4 {[%clk 0:01:39.7]} 24. b3 {[%clk 0:01:47.7]} 24... Nb6 {[%clk
0:01:37.3]} 25. Ne2 {[%clk 0:01:32.8]} 25... f5 {[%clk 0:01:35.4]} 26. Nf4
{[%clk 0:01:27.1]} 26... Na8 {[%clk 0:01:35.7]} 27. Rg3 {[%clk 0:01:19.2]} 27...
Nc7 {[%clk 0:01:17.8]} 28. Nxg6 {[%clk 0:01:12.8]} 28... hxg6 {[%clk 0:01:17.2]}
29. Rxg6+ {[%clk 0:01:13.7]} 29... Kh7 {[%clk 0:01:14.2]} 30. Rxf5 {[%clk
0:01:05.5]} 30... Kxg6 {[%clk 0:01:07.3]} 31. Rxf8+ {[%clk 0:00:46.4]} 31... Kg7
{[%clk 0:01:07.6]} 32. Rf6 {[%clk 0:00:43]} 32... Ne6 {[%clk 0:00:55.2]} 33.
Qg6+ {[%clk 0:00:42.1]} 33... Kh8 {[%clk 0:00:54.8]} 34. Qh5+ {[%clk 0:00:36.5]}
34... Kg8 {[%clk 0:00:53.9]} 35. Rh6 {[%clk 0:00:31.1]} 35... Nf8 {[%clk
0:00:45.4]} 36. Rh8+ {[%clk 0:00:25.7]} 36... Kg7 {[%clk 0:00:45.7]} 37. Qh6+
{[%clk 0:00:20.2]} 37... Kf7 {[%clk 0:00:45.9]} 38. Qh5+ {[%clk 0:00:15]} 38...
Kg7 {[%clk 0:00:44.5]} 39. Qh6+ {[%clk 0:00:10.4]} 39... Kf7 {[%clk 0:00:44.9]}
40. Qh5+ {[%clk 0:00:04]} 40... Kg7 {[%clk 0:00:45.3]} 1/2-1/2

[Event "Early-Titled-Tuesday-Blitz-July-09-2024"]
[Site "Chess.com"]
[Date "2024.07.09"]
[Round "4"]
[White "Navyblue1"]
[Black "GAO"]
[Result "0-1"]
[WhiteElo "2128"]
[BlackElo "2454"]
[TimeControl "180+1"]
[EndTime "8:39:18 PDT"]
[Termination "GAO won on time"]

1. d4 {[%clk 0:02:36.5]} 1... Nf6 {[%clk 0:02:58.7]} 2. c4 {[%clk 0:02:35.7]}
2... e6 {[%clk 0:02:58.9]} 3. Nf3 {[%clk 0:02:32.3]} 3... d5 {[%clk 0:02:57.9]}
4. Nc3 {[%clk 0:02:24.5]} 4... Bb4 {[%clk 0:02:57]} 5. Bg5 {[%clk 0:01:52.1]}
5... h6 {[%clk 0:02:55.9]} 6. Bxf6 {[%clk 0:01:47.1]} 6... Qxf6 {[%clk
0:02:56.8]} 7. e3 {[%clk 0:01:45.1]} 7... O-O {[%clk 0:02:55.1]} 8. Rc1 {[%clk
0:01:43.9]} 8... b6 {[%clk 0:02:35.6]} 9. a3 {[%clk 0:01:41.6]} 9... Bxc3+
{[%clk 0:02:35.2]} 10. Rxc3 {[%clk 0:01:42.5]} 10... Bb7 {[%clk 0:02:35.1]} 11.
Be2 {[%clk 0:01:38.3]} 11... dxc4 {[%clk 0:02:34.8]} 12. Rxc4 {[%clk 0:01:33.2]}
12... Rc8 {[%clk 0:02:33.2]} 13. O-O {[%clk 0:01:30.3]} 13... Nd7 {[%clk
0:02:31.8]} 14. Qc2 {[%clk 0:01:07.8]} 14... c5 {[%clk 0:02:31]} 15. dxc5 {[%clk
0:00:57]} 15... Nxc5 {[%clk 0:02:30]} 16. Rc1 {[%clk 0:00:45.3]} 16... Rd8
{[%clk 0:02:00.2]} 17. b4 {[%clk 0:00:31.8]} 17... Nd7 {[%clk 0:01:55.4]} 18.
Rc7 {[%clk 0:00:26.2]} 18... Bd5 {[%clk 0:01:51.2]} 19. e4 {[%clk 0:00:23.3]}
19... Bxe4 {[%clk 0:01:32.3]} 20. Qxe4 {[%clk 0:00:21.3]} 20... Nf8 {[%clk
0:01:32.6]} 21. h3 {[%clk 0:00:17.9]} 21... Ng6 {[%clk 0:01:30.6]} 22. Bd3
{[%clk 0:00:16.3]} 22... Nf8 {[%clk 0:01:21.8]} 23. Ne5 {[%clk 0:00:14]} 23...
g6 {[%clk 0:01:16.6]} 24. Ng4 {[%clk 0:00:13.2]} 24... Qg7 {[%clk 0:01:15.7]}
25. Qe2 {[%clk 0:00:11]} 25... Rd5 {[%clk 0:01:07.7]} 26. Be4 {[%clk 0:00:10.8]}
26... Rad8 {[%clk 0:01:05.5]} 27. Bxd5 {[%clk 0:00:10.8]} 27... exd5 {[%clk
0:01:06.4]} 28. Qd3 {[%clk 0:00:09.7]} 28... d4 {[%clk 0:01:06]} 29. Rc8 {[%clk
0:00:09]} 29... Rxc8 {[%clk 0:00:59.5]} 30. Rxc8 {[%clk 0:00:09.9]} 30... Kh7
{[%clk 0:00:59.9]} 31. Rd8 {[%clk 0:00:07.9]} 31... Ne6 {[%clk 0:00:59.4]} 32.
Rd6 {[%clk 0:00:07.1]} 32... h5 {[%clk 0:00:58.7]} 33. Rd5 {[%clk 0:00:03.3]}
33... hxg4 {[%clk 0:00:57.5]} 34. hxg4 {[%clk 0:00:03.6]} 34... Qf6 {[%clk
0:00:58]} 35. g5 {[%clk 0:00:02.8]} 35... Qf4 {[%clk 0:00:57.6]} 36. g3 {[%clk
0:00:01.5]} 36... Qc1+ {[%clk 0:00:57.5]} 37. Kg2 {[%clk 0:00:01.4]} 37... Qc6
{[%clk 0:00:55]} 38. Qe4 {[%clk 0:00:01]} 38... a5 {[%clk 0:00:41.5]} 0-1

[Event "Early-Titled-Tuesday-Blitz-July-09-2024"]
[Site "Chess.com"]
[Date "2024.07.09"]
[Round "4"]
[White "tgpgoat"]
[Black "Tol_Tol"]
[Result "0-1"]
[WhiteElo "2515"]
[BlackElo "2367"]
[TimeControl "180+1"]
[EndTime "8:39:19 PDT"]
[Termination "Tol_Tol won by resignation"]

1. Nf3 {[%clk 0:03:00.9]} 1... Nf6 {[%clk 0:02:59.7]} 2. d4 {[%clk 0:03:01.8]}
2... g6 {[%clk 0:02:59.1]} 3. Bg5 {[%clk 0:03:02.1]} 3... Bg7 {[%clk 0:02:52.1]}
4. Nbd2 {[%clk 0:03:02.3]} 4... d5 {[%clk 0:02:49.8]} 5. Bxf6 {[%clk 0:03:01.6]}
5... exf6 {[%clk 0:02:48.2]} 6. e4 {[%clk 0:03:02.5]} 6... dxe4 {[%clk
0:02:47.4]} 7. Nxe4 {[%clk 0:03:00]} 7... O-O {[%clk 0:02:48.1]} 8. Be2 {[%clk
0:02:59.4]} 8... Re8 {[%clk 0:02:47.4]} 9. Ng3 {[%clk 0:02:59.1]} 9... f5 {[%clk
0:02:46.5]} 10. O-O {[%clk 0:02:58.8]} 10... f4 {[%clk 0:02:46.1]} 11. Nh1
{[%clk 0:02:58.4]} 11... b6 {[%clk 0:02:25.3]} 12. c3 {[%clk 0:02:56.3]} 12...
Bb7 {[%clk 0:02:25.5]} 13. Nd2 {[%clk 0:02:55.3]} 13... Nd7 {[%clk 0:02:24.9]}
14. Bf3 {[%clk 0:02:55.1]} 14... Qc8 {[%clk 0:02:24.4]} 15. Re1 {[%clk
0:02:34.6]} 15... Rxe1+ {[%clk 0:02:23.1]} 16. Qxe1 {[%clk 0:02:34.4]} 16... c5
{[%clk 0:02:19.2]} 17. d5 {[%clk 0:02:33.2]} 17... Ne5 {[%clk 0:02:14]} 18. c4
{[%clk 0:02:23.7]} 18... Qd7 {[%clk 0:02:13.2]} 19. Rb1 {[%clk 0:02:18.2]} 19...
Re8 {[%clk 0:02:11.9]} 20. Qd1 {[%clk 0:02:18.1]} 20... g5 {[%clk 0:02:00.8]}
21. h3 {[%clk 0:02:13.1]} 21... f5 {[%clk 0:01:56.4]} 22. b3 {[%clk 0:02:06]}
22... g4 {[%clk 0:01:53.9]} 23. hxg4 {[%clk 0:02:06.3]} 23... fxg4 {[%clk
0:01:54]} 24. Be4 {[%clk 0:02:06.3]} 24... Qd6 {[%clk 0:01:50.3]} 25. Qc2 {[%clk
0:02:00.7]} 25... Qh6 {[%clk 0:01:49.7]} 26. Nf1 {[%clk 0:01:56.8]} 26... f3
{[%clk 0:01:36.3]} 27. Nh2 {[%clk 0:01:49.4]} 27... fxg2 {[%clk 0:01:32.2]} 28.
Kxg2 {[%clk 0:01:50.3]} 28... Qh3+ {[%clk 0:01:26.1]} 29. Kg1 {[%clk 0:01:49.7]}
29... Nf3+ {[%clk 0:01:25.1]} 30. Nxf3 {[%clk 0:00:52.7]} 30... gxf3 {[%clk
0:01:26]} 31. Bxf3 {[%clk 0:00:52.9]} 31... Qxf3 {[%clk 0:01:25.2]} 32. Ng3
{[%clk 0:00:52.5]} 32... Bd4 {[%clk 0:01:22.7]} 33. Kh2 {[%clk 0:00:11.9]} 33...
Re6 {[%clk 0:01:13.2]} 34. Qd2 {[%clk 0:00:10.8]} 34... Rg6 {[%clk 0:00:56]} 35.
Re1 {[%clk 0:00:07.8]} 35... Bxf2 {[%clk 0:00:43.7]} 36. Re8+ {[%clk 0:00:08.2]}
36... Kf7 {[%clk 0:00:42.9]} 37. Qd3 {[%clk 0:00:01.2]} 0-1

[Event "Early-Titled-Tuesday-Blitz-July-09-2024"]
[Site "Chess.com"]
[Date "2024.07.09"]
[Round "4"]
[White "MKlose11"]
[Black "JavierRuizVazquez"]
[Result "1-0"]
[WhiteElo "2669"]
[BlackElo "2399"]
[TimeControl "180+1"]
[EndTime "8:39:26 PDT"]
[Termination "MKlose11 won by resignation"]

1. e4 {[%clk 0:02:57.9]} 1... c6 {[%clk 0:03:00.2]} 2. Nc3 {[%clk 0:02:55.1]}
2... d5 {[%clk 0:03:00.3]} 3. g3 {[%clk 0:02:56]} 3... dxe4 {[%clk 0:02:59.6]}
4. Nxe4 {[%clk 0:02:56.9]} 4... Nf6 {[%clk 0:03:00.1]} 5. Bg2 {[%clk 0:02:54.9]}
5... Bf5 {[%clk 0:02:51]} 6. d3 {[%clk 0:02:45.3]} 6... e6 {[%clk 0:02:36.1]} 7.
Ne2 {[%clk 0:02:43.7]} 7... Bxe4 {[%clk 0:02:33.7]} 8. dxe4 {[%clk 0:02:42.6]}
8... Qxd1+ {[%clk 0:02:32.5]} 9. Kxd1 {[%clk 0:02:42.8]} 9... Bc5 {[%clk
0:02:32.9]} 10. f3 {[%clk 0:02:38.3]} 10... Nbd7 {[%clk 0:02:29.4]} 11. c3
{[%clk 0:02:36.4]} 11... O-O-O {[%clk 0:02:28.8]} 12. Kc2 {[%clk 0:02:36.6]}
12... h6 {[%clk 0:02:07.8]} 13. h3 {[%clk 0:02:26.8]} 13... Ne5 {[%clk
0:01:50.3]} 14. f4 {[%clk 0:02:23.3]} 14... Nc4 {[%clk 0:01:47.8]} 15. b3 {[%clk
0:02:17.3]} 15... Ne3+ {[%clk 0:01:47.6]} 16. Bxe3 {[%clk 0:02:17.3]} 16... Bxe3
{[%clk 0:01:48.5]} 17. Rad1 {[%clk 0:02:17.5]} 17... Rxd1 {[%clk 0:01:43.5]} 18.
Rxd1 {[%clk 0:02:17]} 18... Rd8 {[%clk 0:01:44]} 19. Rd3 {[%clk 0:02:10.9]}
19... Bb6 {[%clk 0:01:38.1]} 20. c4 {[%clk 0:01:51.6]} 20... Rxd3 {[%clk
0:01:26.3]} 21. Kxd3 {[%clk 0:01:50.6]} 21... a5 {[%clk 0:01:14.1]} 22. e5
{[%clk 0:01:49.3]} 22... Nd7 {[%clk 0:01:12]} 23. Nc3 {[%clk 0:01:45]} 23... f6
{[%clk 0:01:00.8]} 24. exf6 {[%clk 0:01:42.6]} 24... Nxf6 {[%clk 0:00:53.5]} 25.
g4 {[%clk 0:01:35.9]} 25... Bc7 {[%clk 0:00:50.1]} 26. Ke3 {[%clk 0:01:35.5]}
26... Bb6+ {[%clk 0:00:48.4]} 27. Kf3 {[%clk 0:01:33.8]} 27... Kd7 {[%clk
0:00:42.5]} 28. Bf1 {[%clk 0:01:30.6]} 28... Bd4 {[%clk 0:00:38.7]} 29. Ne2
{[%clk 0:01:28.7]} 29... Ba7 {[%clk 0:00:33.3]} 30. g5 {[%clk 0:01:25]} 30...
Ng8 {[%clk 0:00:13.1]} 31. h4 {[%clk 0:01:21]} 31... Bb8 {[%clk 0:00:05.1]} 32.
Ng3 {[%clk 0:01:18]} 32... Ke7 {[%clk 0:00:04.8]} 33. Bh3 {[%clk 0:01:12.1]}
33... Kf7 {[%clk 0:00:04.6]} 34. Ne4 {[%clk 0:01:10.6]} 34... g6 {[%clk
0:00:04.4]} 35. Nc5 {[%clk 0:01:09.2]} 35... e5 {[%clk 0:00:04.4]} 36. fxe5
{[%clk 0:01:01.9]} 36... Bxe5 {[%clk 0:00:05.3]} 37. Be6+ {[%clk 0:01:01.8]}
37... Kg7 {[%clk 0:00:05.1]} 38. Bxg8 {[%clk 0:01:01.4]} 38... Kxg8 {[%clk
0:00:06]} 39. Nxb7 {[%clk 0:01:01.8]} 39... Bc3 {[%clk 0:00:05.6]} 40. Nd8
{[%clk 0:01:00.8]} 40... Kg7 {[%clk 0:00:05.5]} 41. gxh6+ {[%clk 0:01:00.1]}
41... Kxh6 {[%clk 0:00:05.5]} 42. Kg4 {[%clk 0:00:59.5]} 42... Bf6 {[%clk
0:00:04.8]} 43. Nxc6 {[%clk 0:00:59.4]} 43... Bc3 {[%clk 0:00:04.3]} 44. a3
{[%clk 0:00:59.5]} 44... Kg7 {[%clk 0:00:04.7]} 45. b4 {[%clk 0:00:59.7]} 45...
axb4 {[%clk 0:00:05.5]} 46. axb4 {[%clk 0:01:00.6]} 46... Kf6 {[%clk 0:00:06.1]}
47. b5 {[%clk 0:00:55.8]} 47... Bd2 {[%clk 0:00:06.6]} 48. b6 {[%clk 0:00:54]}
1-0

[Event "Early-Titled-Tuesday-Blitz-July-09-2024"]
[Site "Chess.com"]
[Date "2024.07.09"]
[Round "4"]
[White "JoJoZP"]
[Black "nitpicker"]
[Result "1-0"]
[WhiteElo "2506"]
[BlackElo "2303"]
[TimeControl "180+1"]
[EndTime "8:39:27 PDT"]
[Termination "JoJoZP won by resignation"]

1. e4 {[%clk 0:02:55]} 1... c5 {[%clk 0:02:59.1]} 2. Nf3 {[%clk 0:02:53.3]} 2...
Nc6 {[%clk 0:02:58.8]} 3. d3 {[%clk 0:02:52.8]} 3... g6 {[%clk 0:02:57.2]} 4. g3
{[%clk 0:02:52.7]} 4... Bg7 {[%clk 0:02:57.2]} 5. Bg2 {[%clk 0:02:53.4]} 5... e5
{[%clk 0:02:57.2]} 6. O-O {[%clk 0:02:53.7]} 6... Nge7 {[%clk 0:02:56.1]} 7. Nc3
{[%clk 0:02:51.3]} 7... d6 {[%clk 0:02:54.8]} 8. Bg5 {[%clk 0:02:50.1]} 8... h6
{[%clk 0:02:53.3]} 9. Be3 {[%clk 0:02:48.1]} 9... O-O {[%clk 0:02:47]} 10. Nd2
{[%clk 0:02:41.3]} 10... Be6 {[%clk 0:02:40.7]} 11. f4 {[%clk 0:02:39.7]} 11...
f5 {[%clk 0:02:40.8]} 12. Nf3 {[%clk 0:02:32.8]} 12... Nd4 {[%clk 0:02:25.8]}
13. Kh1 {[%clk 0:02:25.8]} 13... Rb8 {[%clk 0:02:22.7]} 14. a4 {[%clk 0:02:23]}
14... b6 {[%clk 0:02:20.4]} 15. Qd2 {[%clk 0:02:14]} 15... Kh7 {[%clk 0:02:19]}
16. Rae1 {[%clk 0:02:12.9]} 16... Qd7 {[%clk 0:02:03.2]} 17. b3 {[%clk
0:01:58.6]} 17... Rbd8 {[%clk 0:01:46.5]} 18. fxe5 {[%clk 0:01:50.9]} 18... dxe5
{[%clk 0:01:42.2]} 19. exf5 {[%clk 0:01:51.2]} 19... gxf5 {[%clk 0:01:31.1]} 20.
Nh4 {[%clk 0:01:50.8]} 20... Ng6 {[%clk 0:01:12.9]} 21. Nxg6 {[%clk 0:01:44.5]}
21... Kxg6 {[%clk 0:01:13.8]} 22. Ne2 {[%clk 0:01:31.3]} 22... Kh7 {[%clk
0:01:11.4]} 23. Ng1 {[%clk 0:01:30.2]} 23... Nc6 {[%clk 0:00:51.1]} 24. Qf2
{[%clk 0:01:22.5]} 24... Nb4 {[%clk 0:00:46.1]} 25. Nf3 {[%clk 0:01:17.5]} 25...
Bd5 {[%clk 0:00:36.4]} 26. Nh4 {[%clk 0:01:12.3]} 26... Be6 {[%clk 0:00:31.7]}
27. Bc1 {[%clk 0:01:07.2]} 27... Nd5 {[%clk 0:00:29.2]} 28. Bb2 {[%clk
0:01:05.6]} 28... Qc7 {[%clk 0:00:26]} 29. Bh3 {[%clk 0:00:58]} 29... Ne7 {[%clk
0:00:23.5]} 30. Re2 {[%clk 0:00:51.9]} 30... Bd5+ {[%clk 0:00:21.5]} 31. Bg2
{[%clk 0:00:50.8]} 31... Bxg2+ {[%clk 0:00:20.7]} 32. Qxg2 {[%clk 0:00:51.7]}
32... Qc6 {[%clk 0:00:14.9]} 33. Qxc6 {[%clk 0:00:50.1]} 33... Nxc6 {[%clk
0:00:14.4]} 34. Rxf5 {[%clk 0:00:50]} 34... Rxf5 {[%clk 0:00:13.2]} 35. Nxf5
{[%clk 0:00:50.9]} 35... Nd4 {[%clk 0:00:12.6]} 36. Bxd4 {[%clk 0:00:50.7]}
36... exd4 {[%clk 0:00:11.8]} 37. Re7 {[%clk 0:00:49]} 37... Kg6 {[%clk
0:00:11.2]} 38. Nxg7 {[%clk 0:00:48.4]} 38... Rf8 {[%clk 0:00:11.3]} 39. Kg2
{[%clk 0:00:47.5]} 39... Rf6 {[%clk 0:00:08.9]} 40. Rxa7 {[%clk 0:00:46.1]}
40... h5 {[%clk 0:00:08.2]} 41. h3 {[%clk 0:00:42.5]} 41... Rc6 {[%clk
0:00:07.6]} 42. g4 {[%clk 0:00:40.2]} 42... Rd6 {[%clk 0:00:06.9]} 43. Kg3
{[%clk 0:00:39.4]} 1-0

[Event "Early-Titled-Tuesday-Blitz-July-09-2024"]
[Site "Chess.com"]
[Date "2024.07.09"]
[Round "4"]
[White "Balla_Tamas"]
[Black "osielchesslover2011"]
[Result "1-0"]
[WhiteElo "2470"]
[BlackElo "2190"]
[TimeControl "180+1"]
[EndTime "8:39:29 PDT"]
[Termination "Balla_Tamas won on time"]

1. e4 {[%clk 0:03:00.9]} 1... c5 {[%clk 0:02:55.3]} 2. c3 {[%clk 0:03:00.3]}
2... d5 {[%clk 0:02:53]} 3. exd5 {[%clk 0:03:00.2]} 3... Qxd5 {[%clk 0:02:53.7]}
4. d4 {[%clk 0:03:00.6]} 4... Nc6 {[%clk 0:02:53.4]} 5. Nf3 {[%clk 0:03:00.4]}
5... Bg4 {[%clk 0:02:53.2]} 6. Be2 {[%clk 0:03:00]} 6... O-O-O {[%clk
0:02:51.3]} 7. c4 {[%clk 0:02:55.8]} 7... Qh5 {[%clk 0:02:50]} 8. d5 {[%clk
0:02:55.6]} 8... Ne5 {[%clk 0:02:38]} 9. Nbd2 {[%clk 0:02:29.3]} 9... Nf6 {[%clk
0:02:21.8]} 10. O-O {[%clk 0:02:26.6]} 10... Nxf3+ {[%clk 0:02:06.6]} 11. Nxf3
{[%clk 0:02:24.1]} 11... e6 {[%clk 0:02:04.4]} 12. Qa4 {[%clk 0:02:19.1]} 12...
Bd6 {[%clk 0:01:23.2]} 13. Rd1 {[%clk 0:01:21.4]} 13... Bxf3 {[%clk 0:01:18.2]}
14. Bxf3 {[%clk 0:01:22.3]} 14... Qxh2+ {[%clk 0:01:17.6]} 15. Kf1 {[%clk
0:01:22.9]} 15... exd5 {[%clk 0:01:17.9]} 16. Be3 {[%clk 0:01:09.3]} 16... Kb8
{[%clk 0:00:44.4]} 17. cxd5 {[%clk 0:01:03.3]} 17... Rhe8 {[%clk 0:00:32.5]} 18.
b4 {[%clk 0:00:25.4]} 18... Bf4 {[%clk 0:00:05.8]} 19. bxc5 {[%clk 0:00:12.7]}
19... Bxe3 {[%clk 0:00:05]} 20. fxe3 {[%clk 0:00:13.6]} 20... Rxe3 {[%clk
0:00:04.9]} 21. c6 {[%clk 0:00:09.7]} 21... Re7 {[%clk 0:00:01.7]} 22. Rab1
{[%clk 0:00:03.4]} 22... Qd6 {[%clk 0:00:01.1]} 23. cxb7 {[%clk 0:00:02]} 1-0

[Event "Early-Titled-Tuesday-Blitz-July-09-2024"]
[Site "Chess.com"]
[Date "2024.07.09"]
[Round "4"]
[White "Jakhongir-Vakhidov"]
[Black "Galileo22"]
[Result "1-0"]
[WhiteElo "3016"]
[BlackElo "2616"]
[TimeControl "180+1"]
[EndTime "8:39:30 PDT"]
[Termination "Jakhongir-Vakhidov won by resignation"]

1. c4 {[%clk 0:03:00.9]} 1... e6 {[%clk 0:02:59.2]} 2. Nc3 {[%clk 0:03:01.1]}
2... c5 {[%clk 0:02:59.4]} 3. Nf3 {[%clk 0:03:00.8]} 3... Nc6 {[%clk 0:02:59]}
4. g3 {[%clk 0:02:59.9]} 4... Nf6 {[%clk 0:02:58.6]} 5. Bg2 {[%clk 0:02:59.9]}
5... d5 {[%clk 0:02:58.9]} 6. cxd5 {[%clk 0:03:00.7]} 6... exd5 {[%clk 0:02:55]}
7. d4 {[%clk 0:03:00.8]} 7... cxd4 {[%clk 0:02:32.2]} 8. Nxd4 {[%clk 0:03:01.7]}
8... Bc5 {[%clk 0:02:32.4]} 9. Nb3 {[%clk 0:02:59.9]} 9... Bb4 {[%clk
0:02:20.4]} 10. O-O {[%clk 0:02:55.4]} 10... Bxc3 {[%clk 0:02:16]} 11. bxc3
{[%clk 0:02:56.3]} 11... h6 {[%clk 0:02:16.1]} 12. Ba3 {[%clk 0:02:53]} 12...
Ne7 {[%clk 0:02:09.9]} 13. c4 {[%clk 0:02:53.2]} 13... dxc4 {[%clk 0:01:54.8]}
14. Qxd8+ {[%clk 0:02:54.1]} 14... Kxd8 {[%clk 0:01:55.5]} 15. Na5 {[%clk
0:02:54.3]} 15... Nc6 {[%clk 0:01:53.2]} 16. Rfd1+ {[%clk 0:02:48.8]} 16... Kc7
{[%clk 0:01:52.9]} 17. Bd6+ {[%clk 0:02:31.9]} 17... Kb6 {[%clk 0:01:52.7]} 18.
Nxc6 {[%clk 0:02:17.2]} 18... bxc6 {[%clk 0:01:52.6]} 19. Rab1+ {[%clk
0:02:17.9]} 19... Ka6 {[%clk 0:01:48.3]} 20. Bxc6 {[%clk 0:02:17.7]} 20... Bf5
{[%clk 0:01:47.1]} 21. Rb4 {[%clk 0:01:41.7]} 21... Rac8 {[%clk 0:01:38]} 22.
Rxc4 {[%clk 0:01:33.7]} 22... Rhd8 {[%clk 0:01:33.7]} 23. Rc5 {[%clk 0:01:20.2]}
23... Ne4 {[%clk 0:00:49.2]} 24. Rxf5 {[%clk 0:00:39.2]} 24... Nxd6 {[%clk
0:00:46.8]} 25. Rc5 {[%clk 0:00:39]} 25... Kb6 {[%clk 0:00:46.2]} 26. Rdc1
{[%clk 0:00:38.9]} 26... Rc7 {[%clk 0:00:15.8]} 27. R5c2 {[%clk 0:00:38.9]}
27... Rdc8 {[%clk 0:00:14.6]} 28. Ba4 {[%clk 0:00:37.2]} 28... Rxc2 {[%clk
0:00:12.2]} 29. Rxc2 {[%clk 0:00:32.5]} 29... Rxc2 {[%clk 0:00:12.2]} 30. Bxc2
{[%clk 0:00:33.4]} 30... Kc5 {[%clk 0:00:12.8]} 31. f4 {[%clk 0:00:29.6]} 31...
Kd4 {[%clk 0:00:12.1]} 32. Kf2 {[%clk 0:00:29.6]} 32... Kc3 {[%clk 0:00:10.3]}
33. Bb3 {[%clk 0:00:29.3]} 33... f6 {[%clk 0:00:09.2]} 34. Kf3 {[%clk 0:00:29]}
34... a5 {[%clk 0:00:09.2]} 35. e4 {[%clk 0:00:29]} 35... Nb5 {[%clk 0:00:09.3]}
36. e5 {[%clk 0:00:27.7]} 36... fxe5 {[%clk 0:00:08.2]} 37. fxe5 {[%clk
0:00:28.6]} 37... Nd4+ {[%clk 0:00:08.5]} 38. Ke4 {[%clk 0:00:28.9]} 38... Nxb3
{[%clk 0:00:09.4]} 39. axb3 {[%clk 0:00:29.3]} 39... Kxb3 {[%clk 0:00:10.3]} 40.
e6 {[%clk 0:00:29.9]} 40... a4 {[%clk 0:00:11.2]} 41. e7 {[%clk 0:00:30.6]}
41... a3 {[%clk 0:00:12.1]} 42. e8=Q {[%clk 0:00:31.2]} 42... a2 {[%clk
0:00:13]} 43. Qe5 {[%clk 0:00:31.6]} 1-0

[Event "Early-Titled-Tuesday-Blitz-July-09-2024"]
[Site "Chess.com"]
[Date "2024.07.09"]
[Round "4"]
[White "Shuvalov"]
[Black "EternalNight8"]
[Result "1-0"]
[WhiteElo "2587"]
[BlackElo "2374"]
[TimeControl "180+1"]
[EndTime "8:39:30 PDT"]
[Termination "Shuvalov won on time"]

1. c4 {[%clk 0:01:51.5]} 1... e5 {[%clk 0:02:58.8]} 2. Nc3 {[%clk 0:01:50.9]}
2... Nf6 {[%clk 0:02:58.5]} 3. Nf3 {[%clk 0:01:51.2]} 3... Nc6 {[%clk
0:02:58.6]} 4. g3 {[%clk 0:01:50.9]} 4... Bb4 {[%clk 0:02:56.3]} 5. Nd5 {[%clk
0:01:49]} 5... Bc5 {[%clk 0:02:47.1]} 6. Bg2 {[%clk 0:01:46.1]} 6... e4 {[%clk
0:02:34.7]} 7. Nh4 {[%clk 0:01:39.6]} 7... d6 {[%clk 0:02:29.1]} 8. d3 {[%clk
0:01:26.7]} 8... Ng4 {[%clk 0:02:12.1]} 9. O-O {[%clk 0:01:15]} 9... g5 {[%clk
0:01:59.3]} 10. Bxg5 {[%clk 0:01:09.7]} 10... Qxg5 {[%clk 0:02:00.2]} 11. Nxc7+
{[%clk 0:01:09.7]} 11... Kf8 {[%clk 0:01:58.1]} 12. Nxa8 {[%clk 0:01:09.7]}
12... f5 {[%clk 0:00:50.3]} 13. Nc7 {[%clk 0:01:00.9]} 13... f4 {[%clk
0:00:40.4]} 14. Bxe4 {[%clk 0:00:49.9]} 14... fxg3 {[%clk 0:00:39]} 15. hxg3
{[%clk 0:00:49.4]} 15... Kg7 {[%clk 0:00:28.6]} 16. Nf3 {[%clk 0:00:37]} 16...
Qh6 {[%clk 0:00:22.3]} 17. Qc1 {[%clk 0:00:28.6]} 17... Qf6 {[%clk 0:00:18.1]}
18. Nd5 {[%clk 0:00:23.9]} 18... Qd8 {[%clk 0:00:14.3]} 19. Kg2 {[%clk
0:00:20.5]} 19... Nce5 {[%clk 0:00:10.9]} 20. Nxe5 {[%clk 0:00:19.6]} 20... dxe5
{[%clk 0:00:11.7]} 21. e3 {[%clk 0:00:18.8]} 21... h5 {[%clk 0:00:10.7]} 22. Rh1
{[%clk 0:00:18.3]} 22... Rf8 {[%clk 0:00:10.2]} 23. f3 {[%clk 0:00:18.5]} 23...
Nh6 {[%clk 0:00:08.7]} 24. Rxh5 {[%clk 0:00:18.4]} 24... Qe8 {[%clk 0:00:08.1]}
25. Qh1 {[%clk 0:00:17.8]} 25... Rh8 {[%clk 0:00:06.5]} 26. Rg5+ {[%clk
0:00:17.2]} 26... Kf8 {[%clk 0:00:06.3]} 27. Rh5 {[%clk 0:00:16.8]} 27... Kg7
{[%clk 0:00:06.5]} 28. Rf1 {[%clk 0:00:16.2]} 28... Bd7 {[%clk 0:00:05.4]} 29.
g4 {[%clk 0:00:16.2]} 29... Qf8 {[%clk 0:00:02.7]} 30. g5 {[%clk 0:00:15.7]}
30... Nf7 {[%clk 0:00:02.5]} 31. Rh7+ {[%clk 0:00:15.8]} 1-0